Cogmind - Beta 10.2 @@@ ROGUE MODE // 2020.12.22 @ 20:57:50 Player: Demise Result: Destroyed by D-53 Grenadier with Mini Grenade Launcher Performance ------------- Evolutions (0) 0 Regions Visited (2) 400 Robots Destroyed (25) 125 Value Destroyed (455) 455 Prototype IDs (0) 0 Alien Tech Used (0) 0 Bonus (0) 0 TOTAL SCORE: 980 Bonus ------- None Cogmind --------- Core Integrity 0/250 Matter 300/300 Energy 160/160 System Corruption 1% Temperature Cool (112) Movement Core (650) Ox12 Location -10/Mines Parts ------- > --- POWER (1) -------- Light Nuclear Core > --- PROPULSION (2) --- (None) > --- UTILITY (2) ------ Large Storage Unit Large Storage Unit > --- WEAPON (2) ------- (None) > --- INVENTORY (16) --- Large Storage Unit Large Storage Unit High-capacity Matter Pod (200) Visual Processing Unit Sensor Array Signal Interpreter Signal Interpreter Particle Gun Particle Gun Particle Gun Grenade Launcher Mining Laser Peak State ------------ > --- POWER ------------ Light Nuclear Core > --- PROPULSION ------- Light Treads Light Treads > --- UTILITY ---------- Large Storage Unit Large Storage Unit > --- WEAPON ----------- Medium Laser Light Assault Rifle > --- INVENTORY -------- Large Storage Unit Large Storage Unit High-capacity Matter Pod Visual Processing Unit Sensor Array Signal Interpreter Signal Interpreter Particle Gun Particle Gun Particle Gun Grenade Launcher Mining Laser [Rating: 10] Favorites ----------- Power Ion Engine Engine Ion Engine Power Core Light Nuclear Core Propulsion Light Treads Treads Light Treads Utility Large Storage Unit Storage Large Storage Unit Weapon Assault Rifle Energy Gun Medium Laser Ballistic Gun Assault Rifle Special Weapon Mining Laser Build | -11 -10 -10 ------- Run | Scr Mat Min Slots Evolved . | . . . Power . | . . . Propulsion . | . . . Utility . | . . . Weapon . | . . . Parts Attached 23 | 8 11 4 Power 4 | 1 2 1 Engine 3 | 1 2 . Core 1 | . . 1 Reactor . | . . . Propulsion 6 | 2 3 1 Treads 6 | 2 3 1 Leg . | . . . Wheel . | . . . Hover . | . . . Flight . | . . . Utility 4 | 2 2 . Device . | . . . Storage 4 | 2 2 . Processor . | . . . Hackware . | . . . Protection . | . . . Artifact . | . . . Weapon 9 | 3 4 2 Energy Gun 2 | 1 . 1 Energy Cannon . | . . . Ballistic Gun 6 | 2 3 1 Ballistic Cannon . | . . . Launcher . | . . . Special Weapon 1 | . 1 . Impact Weapon . | . . . Slashing Weapon . | . . . Piercing Weapon . | . . . Special Melee Weapon . | . . . Unidentified Prototypes . | . . . Parts Lost 8 | . . 8 Power 1 | . . 1 Propulsion 3 | . . 3 Utility . | . . . Weapon 4 | . . 4 Highest Loss Streak 8 | . . 8 Average Slot Usage (%) 99 | . 99 96 Engine 13 | . 13 12 Treads 27 | . 27 27 Storage 28 | . 28 28 Energy Gun 1 | . 1 . Ballistic Gun 25 | . 25 25 Naked Turns . | . . . Heaviest Build 41 | 17 41 40 Greatest Support 40 | 40 40 40 Greatest Overweight (x) 5 | 5 1 1 Average Overweight (x) . | . . . Largest Inventory Capacity 16 | 8 16 16 Average Capacity 14 | 7 15 16 Most Carried 16 | 4 16 16 Average Carried 13 | 2 14 15 Final Capacity 16 | 8 16 16 Final Carried 16 | 4 16 12 Class Distribution -------------------- 100% | Mutant Dominant Class ---------------- Mutant | -10/Materials Mutant | -10/Mines Resources | -11 -10 -10 ----------- Run | Scr Mat Min Matter Collected 1009 | 399 490 120 Remotely . | . . . Salvage Created 835 | 110 592 133 Parts 63 | 10 51 2 Haulers Intercepted 2 | . 2 . Recyclers Shooed . | . . . Parts Field Recycled . | . . . Retrieved Matter . | . . . Parts Self-Destructed . | . . . Prevented . | . . . Kills | -11 -10 -10 ------- Run | Scr Mat Min Combat Hostiles Destroyed 18 | . 12 6 Melee 1 | . . 1 Guns 17 | . 12 5 Classes Destroyed 9 | 3 5 1 Worker 3 | 1 2 . Builder 1 | . 1 . Tunneler 1 | 1 . . Hauler 2 | . 2 . Recycler 1 | 1 . . Watcher 3 | . 3 . Swarmer 5 | . 5 . Grunt 9 | . 7 2 Assembled 4 | . . 4 Best Kill Streak 6 | 1 6 4 Combat Bots Only 4 | . 4 4 Max Kills in Single Turn 2 | 1 2 1 Gunslinging 1 | . 1 . Exploded . | . . . Melee 1 | . . 1 Uniques/NPCs Destroyed . | . . . Combat | -11 -10 -10 -------- Run | Scr Mat Min Damage Taken 1354 | . 459 895 Core 277 | . 93 184 Absorbed by Shields . | . . . Core Remaining (%) 100 | 100 . . Volleys Fired 91 | 7 62 22 Largest 2 | 2 2 2 Hottest 100 | 70 100 70 Shots Fired 167 | 14 119 34 Gun 163 | 14 115 34 Cannon . | . . . Launcher . | . . . Special 4 | . 4 . Kinetic 146 | 7 108 31 Thermal 21 | 7 11 3 Explosive . | . . . Electromagnetic . | . . . Robot Hit Streak 19 | 4 8 19 Robot Miss Streak 3 | 2 3 2 Penetration Max . | . . . Secondary Targets 3 | . 3 . Max Gunslinging Chain 1 | . 1 . Shots Hit Robots 107 | 10 72 25 Core Hits 52 | 4 33 15 Critical Hits 3 | . 2 1 Critical Kills 1 | . . 1 Critical Parts Destroyed 2 | . 2 . Melee Attacks . | . . . Impact . | . . . Slashing . | . . . Piercing . | . . . Sneak Attacks . | . . . Combat Hostiles . | . . . Follow-up Attacks . | . . . Damage Inflicted 1199 | 108 825 266 Guns 1193 | 108 825 260 Cannons . | . . . Explosions . | . . . Melee . | . . . Ramming 6 | . . 6 Kinetic 1066 | 45 787 234 Thermal 127 | 63 38 26 Explosive . | . . . Electromagnetic . | . . . Impact . | . . . Slashing . | . . . Piercing . | . . . Highest Corruption 1 | . 1 1 Average Corruption 1 | . 1 1 Corruption Purged . | . . . Effects 1 | . . 1 Targeting Errors 1 | . . 1 Overload Shots . | . . . Overflow Damage . | . . . Projectiles . | . . . Explosions . | . . . Melee . | . . . Knockbacks . | . . . Impact . | . . . Kinetic . | . . . Secondary . | . . . Self-Inflicted Damage . | . . . Shots . | . . . Rammed 1 | . . 1 Targets Rammed 1 | . . 1 Kicked . | . . . Crushed . | . . . Highest Temperature 124 | 36 60 124 Average Temperature 20 | 15 14 39 Received Heat Transfer 320 | . 156 164 Siege Activations . | . . . Robots Corrupted . | . . . Combat Hostiles . | . . . Parts Fried . | . . . Impact Corruptions . | . . . Robots Melted . | . . . Combat Hostiles . | . . . Parts Melted . | . . . Heat Transferred 370 | 185 111 74 Parts Sabotaged . | . . . Parts Stolen . | . . . Parts Stripped . | . . . Power Chain Reactions . | . . . Missiles Intercepted . | . . . Alert | -11 -10 -10 ------- Run | Scr Mat Min Peak Influence 237 | 15 237 64 Initial 14 | . 9 14 Average 99 | 8 120 45 Maximum Alert Level 1 | . 1 . Low Security (%) 92 | 100 89 100 Level 1 7 | . 10 . Level 2 . | . . . Level 3 . | . . . Level 4 . | . . . Level 5 . | . . . High Security . | . . . Max Security . | . . . Squads Dispatched 2 | . 2 . Investigation 2 | . 2 . Extermination . | . . . Reinforcement . | . . . Assault . | . . . Garrison . | . . . Intercept . | . . . Construction Impeded . | . . . Haulers Reinforced . | . . . Stealth | -11 -10 -10 --------- Run | Scr Mat Min Distress Signals . | . . . Communications Jammed . | . . . Distress Signals . | . . . Times Spotted 39 | . 21 18 Peak Tracking Total 8 | . 6 8 Tactical Retreats 1 | . . 1 Traps | -11 -10 -10 ------- Run | Scr Mat Min Traps Triggered 1 | . 1 . Indirectly . | . . . Trap Hack Attempts . | . . . Triggered . | . . . Disarmed . | . . . Reprogrammed . | . . . Reused . | . . . Traps Extracted . | . . . Installed . | . . . Triggered . | . . . Machines | -11 -10 -10 ---------- Run | Scr Mat Min Machines Disabled . | . . . Max in Single Turn . | . . . Machines Sabotaged . | . . . Garrisons Compromised . | . . . Overloaded Fab Kills . | . . . Fab Network Shutdowns . | . . . Hacking | -11 -10 -10 --------- Run | Scr Mat Min Machines Accessed 10 | . 10 . Terminals 8 | . 8 . Fabricators . | . . . Repair Stations 1 | . 1 . Recycling Units 1 | . 1 . Scanalyzers . | . . . Garrison Access . | . . . Total Hacks 34 | . 34 . Successful 20 | . 20 . Failed 13 | . 13 . Catastrophic . | . . . Database Lockouts 1 | . 1 . Manual 25 | . 25 . Terminals 30 | . 30 . Fabricators . | . . . Repair Stations 2 | . 2 . Recycling Units 2 | . 2 . Scanalyzers . | . . . Garrison Access . | . . . Terminal Hacks 10 | . 10 . Robot Analysis 5 | . 5 . Level Access Points 1 | . 1 . Branch Access Points 1 | . 1 . Terminal Index 1 | . 1 . Hauler Manifests 1 | . 1 . Zone Layout 1 | . 1 . Fabricator Hacks . | . . . Repair Station Hacks 2 | . 2 . Scan Component 1 | . 1 . Repair 1 | . 1 . Recycling Unit Hacks 1 | . 1 . Report Inventory 1 | . 1 . Scanalyzer . | . . . Garrison Access Hacks . | . . . Unauthorized Hacks 7 | . 7 . Terminals 6 | . 6 . Track 1 | . 1 . Botnet 4 | . 4 . Operators 1 | . 1 . Fabricators . | . . . Repair Stations . | . . . Recycling Units 1 | . 1 . Tunnel 1 | . 1 . Scanalyzers . | . . . Garrison Access . | . . . Data Cores Recovered . | . . . Used . | . . . Hacking Detections 9 | . 9 . Full Trace Events 3 | . 3 . Feedback Events 1 | . 1 . Corruption 1 | . 1 . Feedback Blocked . | . . . Robot Schematics Acquired . | . . . Robots Built . | . . . Matter . | . . . Time . | . . . Total Robot Build Rating . | . . . Part Schematics Acquired . | . . . Parts Built . | . . . Matter . | . . . Time . | . . . Total Part Build Rating . | . . . Parts Repaired 1 | . 1 . Time 26 | . 26 . Parts Recycled . | . . . Recycled Matter . | . . . Retrieved Matter . | . . . Retrieved Components . | . . . Parts Scanalyzed . | . . . Part Schematics Acquired . | . . . Parts Damaged . | . . . Bothacking | -11 -10 -10 ------------ Run | Scr Mat Min Used RIF Installer . | . . . Robots Hacked . | . . . Non-combat . | . . . Combat . | . . . Robot Hacks Applied . | . . . Relay Couplers Released . | . . . Robots Rewired . | . . . Allies Hacked . | . . . Hacks Repelled . | . . . Allies | -11 -10 -10 -------- Run | Scr Mat Min Total Allies . | . . . Largest Group . | . . . Highest-Rated Group . | . . . Highest-Rated Ally . | . . . Total Orders . | . . . Ally Attacks . | . . . Total Damage . | . . . Kills . | . . . Allies Corrupted . | . . . Allies Melted . | . . . Intel | -11 -10 -10 ------- Run | Scr Mat Min Robot Analysis Total 5 | . 5 . Derelict Logs Recovered . | . . . Drone Launches . | . . . Drone Recoveries . | . . . Exploration | -11 -10 -10 ------------- Run | Scr Mat Min Turns Passed 1648 | 154 1262 232 Spaces Moved 796 | 69 625 102 Core 17 | 17 . . Treads 779 | 52 625 102 Legs . | . . . Wheels . | . . . Hover . | . . . Flight . | . . . Fastest Speed 50 | 50 160 160 Average Speed 162 | 172 161 160 Slowest Speed 300 | 300 180 180 Overloaded Moves . | . . . Propulsion Burnouts . | . . . Robots Hopped . | . . . Cave-ins Triggered . | . . . Exploration Rate (%) 45 | 5 98 33 Regions Visited 2 Branch Regions 1 Pre-discovered Areas 1 | . 1 . Known Exits Taken 1 | . 1 . Unknown Exits Taken 1 | 1 . . Scrap Searched 1 | . . 1 Spaces Dug 2 | . 2 . Terrain Destroyed 4 | . 4 . Melee . | . . . Projectile 4 | . 4 . AOE . | . . . Terrain Rammed . | . . . Walls Destroyed . | . . . Machines Disabled . | . . . Actions | -11 -10 -10 --------- Run | Scr Mat Min Total 990 | 86 763 141 Wait 52 | . 42 10 Move 794 | 68 624 102 Hop . | . . . Pick Up 21 | 3 17 1 Fast Attach 10 | 7 3 . Attach 6 | . 2 4 Detach . | . . . Swap 7 | 1 6 . Drop 8 | . 7 1 Fire 91 | 7 62 22 Melee . | . . . Ram . | . . . Kick . | . . . Crush 1 | . . 1 Escape Stasis . | . . . Rewire . | . . . Trap . | . . . Miscellaneous . | . . . Route ------- -11/Scrapyard -10/Materials (discovered 4 exits: *Mat x3 / *Min) -10/Mines History --------- Turn | Location | Event 28 | -11/Scrapyard | Discovered new exit (range 14) 155 | -11/Scrapyard | Entered Materials 324 | -10/Materials | Build established: Mutant 555 | -10/Materials | Discovered new exit (range 5) 603 | -10/Materials | Identified exit to Mines 778 | -10/Materials | Repaired Lgt. Treads 1024 | -10/Materials | Central database locked down 1025 | -10/Materials | Discovered new exit (range 13) 1082 | -10/Materials | Identified exit to Materials 1417 | -10/Materials | Entered Mines 1565 | -10/Mines | Assembled infested the area 1570 | -10/Mines | Assisted by a Guerilla fighting off Assembled 1618 | -10/Mines | Core integrity fell below 50% 1639 | -10/Mines | Core integrity fell below 20% 1649 | -10/Mines | Destroyed by D-53 Grenadier with Mini Grenade Launcher Last Messages --------------- 01630_ Acquired 1 matter. 01633_ as-71105 destroyed. 01634_ Acquired 1 matter. 01636_ Acquired 10 matter. 01636_ Lgt. Assault Rifle destroyed. 01637_ Acquired 4 matter. 01638_ as-38512 destroyed. 01639_ Acquired 12 matter. 01642_ Acquired 1 matter. 01642_ as-26795 destroyed. 01642_ Lgt. Treads destroyed. 01643_ as-37686 destroyed. 01644_ as-76085 destroyed. 01644_ as-62123 destroyed. 01644_ Med. Laser destroyed. 01644_ as-86839 destroyed. 01646_ as-78431 destroyed. 01647_ Lgt. Treads destroyed. 01648_ Lgt. Assault Rifle destroyed. 01649_ The unstable cave ceiling collapses. Map ----- +----------------------------------------------------+ | ??????????# ???#![#???# ##????????????????? | | ???????????# #??#% #??## ##????????????????? | | ????????????# ###/[#?## #????????????????? | | ?????????????# ### #????????????????? | | ??????????????# #????????????????? | | ?????????????## #????????????????? | | ???????????### ### #????????????????? | | ??????????## ##?## ##????????????????? | | ???????#### ##???####?????????????????? | | ?????? ##????????????????????????? | | ?????????# ##???????????????????????? | | ?????????# ##??????????????????????? | | ?????????## ##?????????????????????? | | ??????????## #?????????????????????? | | ???????????# #?????#######?????????? | | ???????????# ##?????# ??????????? | | ???????????# ##??????# ???????????? | | ???????????### ##???????# #????????????? | | ?????????????## ########## #????????????? | | ??????????????## %= a #????????????? | | ????????????????# = #????????????? | | ????????????????# #a #########????????????? | | ????????????????# #???????????????????? | | ????????????????# # ##??????????????????? | | ???????????????## #??????????????????? | | ???????????????# @ #??????????????????? | | ?????????# d #??????????????????? | | ?????????# #??????????????????? | | ?????????#### ##??????????????????? | | ??????????#g d # # ##???????????????????? | | ??????????# % #####????????????????????? | | ??????????# ? ?????????????????????????? | | ????????????### ?????????????????????????? | | ?????????????# t ? ?????????????????????????? | | ?????????????# ##?? ??????????????????????????? | | ?????????????? ##???##??????????????????????????? | | ?????????????? ??????????????????????????????????? | | ?????????????????????????????????????????????????? | | ?????????????????????????????????????????????????? | | ?????????????????????????????????????????????????? | | ?????????????????????????????????????????????????? | | ?????????????????????????????????????????????????? | | ?????????????????????????????????????????????????? | | ?????????????????????????????????????????????????? | | ?????????????????????????????????????????????????? | | ?????????????????????????????????????????????????? | | ?????????????????????????????????????????????????? | | ?????????????????????????????????????????????????? | | ?????????????????????????????????????????????????? | | ?????????????????????????????????????????????????? | +----------------------------------------------------+ Best States ------------- Heat Dissipation 25 Energy Generation 14 Energy Capacity 250 Matter Stores 300 Matter Capacity 300 Sight Range 16 Terrain Scan Density 10 Evasion (%) 40 Recoil Reduction 2 Item Schematics ----------------- None Robot Schematics ------------------ None Fabricated ------------ Nothing Alien Tech Used ----------------- None Achievements -------------- None Challenges ------------ None Game ------ Seed DecoderPotentialScanner Manual? 0 Play Time 00:13:45 Cumulative 152.2 hours Start 2020.12.22 @ 19:37:56 End 2020.12.22 @ 20:57:50 Sessions 3 Manual Loads 0 Difficulty Rogue Special Mode None Game No. 139 Rogue 139 Adventurer 0 Explorer 0 Win Type - Total 0 Types 0/0/0/0/0/0/0/0/0 Lore% 54 Gallery% 66 Achievement% 54 Wizard Run 0 Options --------- ASCII 0 Keyboard 1 Movement Numpad Keybinds 0 Fullscreen 1 Font 12/Terminus Map View 83x54 Tactical HUD 1 Map Filters NONE Filters NONE Steam 1 RUN: e0370304-3114-4113-9d08-10c04b7ee428